[Event "Titled Tuesday Blitz June 20 Late 2023"]
[White "Spata, German"]
[Black "Della Corte, Alessandro"]
[WhiteFideId "113026"]
[BlackFideId "813540"]
[WhiteElo "2260"]
[BlackElo "2205"]
[Result "1-0"]
[Round "1"]
[TimeControl "180+2"]
[Date "2023.06.20"]
[WhiteClock "0:00:06"]
[BlackClock "0:00:07"]
[Board "119"]

1. Nf3 {[%clk 0:02:48]}  d5 {[%clk 0:03:00]} 2. e3 {[%clk 0:02:46]}  Nf6 {[%clk 0:03:00]} 3. d4 {[%clk 0:02:45]}  e6 {[%clk 0:03:01]} 4. Be2 {[%clk 0:02:37]}  Be7 {[%clk 0:03:00]} 5. O-O {[%clk 0:02:37]}  O-O {[%clk 0:03:01]} 6. b3 {[%clk 0:02:36]}  Nbd7 {[%clk 0:03:01]} 7. Bb2 {[%clk 0:02:36]}  b6 {[%clk 0:03:01]} 8. c4 {[%clk 0:02:35]}  Bb7 {[%clk 0:03:02]} 9. Nc3 {[%clk 0:02:35]}  a6 {[%clk 0:03:01]} 10. Rc1 {[%clk 0:02:33]}  Bd6 {[%clk 0:02:57]} 11. Bd3 {[%clk 0:02:31]}  Ne4 {[%clk 0:02:56]} 12. Nd2 {[%clk 0:02:26]}  Nxc3 {[%clk 0:02:53]} 13. Bxc3 {[%clk 0:02:25]}  Qe7 {[%clk 0:02:41]} 14. e4 {[%clk 0:02:14]}  dxe4 {[%clk 0:02:20]} 15. Nxe4 {[%clk 0:01:58]}  Ba3 {[%clk 0:02:15]} 16. Rc2 {[%clk 0:01:51]}  Nf6 {[%clk 0:02:07]} 17. d5 {[%clk 0:01:30]}  Nxe4 {[%clk 0:02:03]} 18. Bxe4 {[%clk 0:01:30]}  exd5 {[%clk 0:02:02]} 19. Qg4 {[%clk 0:01:12]}  f6 {[%clk 0:01:50]} 20. cxd5 {[%clk 0:01:06]}  Bd6 {[%clk 0:01:46]} 21. Re1 {[%clk 0:01:00]}  Qf7 {[%clk 0:01:33]} 22. Qf5 {[%clk 0:00:32]}  g6 {[%clk 0:01:30]} 23. Qe6 {[%clk 0:00:32]}  Rae8 {[%clk 0:01:22]} 24. Qxf7+ {[%clk 0:00:30]}  Kxf7 {[%clk 0:01:22]} 25. Rce2 {[%clk 0:00:29]}  f5 {[%clk 0:01:14]} 26. Bf3 {[%clk 0:00:27]}  a5 {[%clk 0:01:04]} 27. h4 {[%clk 0:00:22]}  Rxe2 {[%clk 0:00:58]} 28. Rxe2 {[%clk 0:00:22]}  Re8 {[%clk 0:00:59]} 29. Re6 {[%clk 0:00:17]}  Bc8 {[%clk 0:00:53]} 30. Rxe8 {[%clk 0:00:17]}  Kxe8 {[%clk 0:00:54]} 31. Kf1 {[%clk 0:00:17]}  Ke7 {[%clk 0:00:53]} 32. g3 {[%clk 0:00:16]}  Ba6+ {[%clk 0:00:50]} 33. Be2 {[%clk 0:00:14]}  Bxe2+ {[%clk 0:00:39]} 34. Kxe2 {[%clk 0:00:14]}  Bb4 {[%clk 0:00:38]} 35. Be5 {[%clk 0:00:12]}  Bd6 {[%clk 0:00:37]} 36. Bd4 {[%clk 0:00:12]}  Bb4 {[%clk 0:00:26]} 37. Be5 {[%clk 0:00:11]}  Bd6 {[%clk 0:00:26]} 38. Bd4 {[%clk 0:00:10]}  Bb4 {[%clk 0:00:26]} 39. Kd3 {[%clk 0:00:08]}  Kd6 {[%clk 0:00:21]} 40. Kc4 {[%clk 0:00:08]}  Be1 {[%clk 0:00:18]} 41. Be3 {[%clk 0:00:07]}  Kd7 {[%clk 0:00:15]} 42. Bd4 {[%clk 0:00:06]}  Bb4 {[%clk 0:00:15]} 43. Be5 {[%clk 0:00:06]}  Bd6 {[%clk 0:00:15]} 44. Bxd6 {[%clk 0:00:05]}  Kxd6 {[%clk 0:00:16]} 45. Kd4 {[%clk 0:00:05]}  b5 {[%clk 0:00:16]} 46. f3 {[%clk 0:00:05]}  h6 {[%clk 0:00:15]} 47. a3 {[%clk 0:00:05]}  g5 {[%clk 0:00:15]} 48. hxg5 {[%clk 0:00:06]}  hxg5 {[%clk 0:00:16]} 49. g4 {[%clk 0:00:06]}  fxg4 {[%clk 0:00:15]} 50. fxg4 {[%clk 0:00:06]}  c5+ {[%clk 0:00:13]} 51. dxc6 {[%clk 0:00:06]}  Kxc6 {[%clk 0:00:13]} 52. Ke5 {[%clk 0:00:06]}  Kc5 {[%clk 0:00:14]} 53. Kf5 {[%clk 0:00:06]}  Kd4 {[%clk 0:00:14]} 54. Kxg5 {[%clk 0:00:06]}  Kc3 {[%clk 0:00:14]} 55. Kf4 {[%clk 0:00:06]}  Kxb3 {[%clk 0:00:15]} 56. g5 {[%clk 0:00:07]}  b4 {[%clk 0:00:15]} 57. axb4 {[%clk 0:00:07]}  a4 {[%clk 0:00:12]} 58. g6 {[%clk 0:00:07]}  a3 {[%clk 0:00:13]} 59. g7 {[%clk 0:00:08]}  a2 {[%clk 0:00:13]} 60. g8=Q+ {[%clk 0:00:08]}  Kb2 {[%clk 0:00:11]} 61. Qxa2+ {[%clk 0:00:07]}  Kc3 {[%clk 0:00:07]} 62. Qa3+ {[%clk 0:00:06]} 1-0


[Site "https://www.chess.com"]

[Event "Titled Tuesday Blitz June 20 Late 2023"]
[White "Skaric, Djuro"]
[Black "DopplerCharlotteDeWitte"]
[WhiteFideId "934569"]
[WhiteElo "2282"]
[BlackElo "2659"]
[Result "0-1"]
[Round "1"]
[TimeControl "180+2"]
[Date "2023.06.20"]
[WhiteClock "0:01:20"]
[BlackClock "0:01:24"]
[Board "120"]

1. g3 {[%clk 0:02:58]}  d5 {[%clk 0:02:59]} 2. Bg2 {[%clk 0:02:57]}  Nf6 {[%clk 0:03:00]} 3. d3 {[%clk 0:02:55]}  e5 {[%clk 0:02:59]} 4. Nf3 {[%clk 0:02:56]}  Nc6 {[%clk 0:02:59]} 5. O-O {[%clk 0:02:57]}  Be7 {[%clk 0:02:59]} 6. h3 {[%clk 0:02:58]}  O-O {[%clk 0:02:59]} 7. Nc3 {[%clk 0:02:58]}  h6 {[%clk 0:02:58]} 8. e4 {[%clk 0:02:58]}  Be6 {[%clk 0:02:52]} 9. Kh2 {[%clk 0:02:53]}  Qd7 {[%clk 0:02:49]} 10. Nd2 {[%clk 0:02:53]}  Rad8 {[%clk 0:02:43]} 11. f3 {[%clk 0:02:46]}  dxe4 {[%clk 0:02:27]} 12. fxe4 {[%clk 0:02:46]}  Nd4 {[%clk 0:02:12]} 13. Nf3 {[%clk 0:02:44]}  Nxf3+ {[%clk 0:02:12]} 14. Qxf3 {[%clk 0:02:42]}  c5 {[%clk 0:02:13]} 15. Be3 {[%clk 0:02:39]}  b5 {[%clk 0:02:05]} 16. a4 {[%clk 0:02:26]}  b4 {[%clk 0:02:02]} 17. Ne2 {[%clk 0:02:25]}  b3 {[%clk 0:02:01]} 18. cxb3 {[%clk 0:02:02]}  Qxd3 {[%clk 0:02:00]} 19. Nc3 {[%clk 0:02:01]}  Bxb3 {[%clk 0:01:54]} 20. Rf2 {[%clk 0:02:01]}  Qa6 {[%clk 0:01:46]} 21. g4 {[%clk 0:01:46]}  Nh7 {[%clk 0:01:39]} 22. Qg3 {[%clk 0:01:45]}  Ng5 {[%clk 0:01:36]} 23. h4 {[%clk 0:01:45]}  Ne6 {[%clk 0:01:36]} 24. g5 {[%clk 0:01:44]}  hxg5 {[%clk 0:01:35]} 25. hxg5 {[%clk 0:01:43]}  Nf4 {[%clk 0:01:34]} 26. Bxf4 {[%clk 0:01:41]}  exf4 {[%clk 0:01:34]} 27. Qxf4 {[%clk 0:01:40]}  Qg6 {[%clk 0:01:33]} 28. Nd5 {[%clk 0:01:32]}  Bxd5 {[%clk 0:01:33]} 29. exd5 {[%clk 0:01:31]}  Bd6 {[%clk 0:01:33]} 30. Raf1 {[%clk 0:01:25]}  Qxg5 {[%clk 0:01:30]} 31. Kg1 {[%clk 0:01:25]}  Bxf4 {[%clk 0:01:29]} 32. Rxf4 {[%clk 0:01:25]}  Rd6 {[%clk 0:01:28]} 33. R4f3 {[%clk 0:01:20]}  Rg6 {[%clk 0:01:24]} 0-1


[Site "https://www.chess.com"]

[Event "Titled Tuesday Blitz June 20 Late 2023"]
[White "Lach, Aleksandra"]
[Black "Martic, Ivan"]
[WhiteFideId "1134299"]
[BlackFideId "929301"]
[WhiteElo "2111"]
[BlackElo "2346"]
[Result "0-1"]
[Round "1"]
[TimeControl "180+2"]
[Date "2023.06.20"]
[WhiteClock "0:00:15"]
[BlackClock "0:00:14"]
[Board "122"]

1. e4 {[%clk 0:03:00]}  c5 {[%clk 0:02:59]} 2. Nf3 {[%clk 0:02:58]}  e6 {[%clk 0:03:00]} 3. g3 {[%clk 0:02:57]}  Nc6 {[%clk 0:02:54]} 4. Bg2 {[%clk 0:02:55]}  Nf6 {[%clk 0:02:52]} 5. Nc3 {[%clk 0:02:50]}  e5 {[%clk 0:02:50]} 6. O-O {[%clk 0:02:48]}  d6 {[%clk 0:02:50]} 7. d3 {[%clk 0:02:43]}  Rb8 {[%clk 0:02:48]} 8. a4 {[%clk 0:02:42]}  a6 {[%clk 0:02:47]} 9. Bg5 {[%clk 0:02:26]}  Be7 {[%clk 0:02:46]} 10. Bxf6 {[%clk 0:02:21]}  Bxf6 {[%clk 0:02:47]} 11. Nd5 {[%clk 0:02:21]}  O-O {[%clk 0:02:44]} 12. c3 {[%clk 0:02:15]}  b5 {[%clk 0:02:40]} 13. axb5 {[%clk 0:02:15]}  axb5 {[%clk 0:02:41]} 14. h3 {[%clk 0:02:14]}  Kh8 {[%clk 0:02:34]} 15. g4 {[%clk 0:02:07]}  Ne7 {[%clk 0:02:13]} 16. Nxf6 {[%clk 0:01:54]}  gxf6 {[%clk 0:02:14]} 17. Qd2 {[%clk 0:01:55]}  Ng6 {[%clk 0:02:11]} 18. Qh6 {[%clk 0:01:54]}  Rg8 {[%clk 0:02:05]} 19. Nh4 {[%clk 0:01:52]}  Nf4 {[%clk 0:01:53]} 20. Ra7 {[%clk 0:01:49]}  Rb7 {[%clk 0:01:49]} 21. Rfa1 {[%clk 0:01:44]}  Rxa7 {[%clk 0:01:40]} 22. Rxa7 {[%clk 0:01:43]}  Be6 {[%clk 0:01:40]} 23. Nf5 {[%clk 0:01:33]}  Rg6 {[%clk 0:01:29]} 24. Qh4 {[%clk 0:01:33]}  Qf8 {[%clk 0:01:03]} 25. d4 {[%clk 0:01:20]}  cxd4 {[%clk 0:01:02]} 26. cxd4 {[%clk 0:01:20]}  exd4 {[%clk 0:00:44]} 27. Bf1 {[%clk 0:01:18]}  d3 {[%clk 0:00:36]} 28. Qg3 {[%clk 0:01:09]}  Ne2+ {[%clk 0:00:32]} 29. Bxe2 {[%clk 0:01:04]}  dxe2 {[%clk 0:00:33]} 30. Qe3 {[%clk 0:01:04]}  Qb8 {[%clk 0:00:22]} 31. Ra1 {[%clk 0:00:53]}  Bxf5 {[%clk 0:00:16]} 32. exf5 {[%clk 0:00:53]}  Rg8 {[%clk 0:00:17]} 33. Qxe2 {[%clk 0:00:53]}  Re8 {[%clk 0:00:16]} 34. Qf3 {[%clk 0:00:53]}  Qc7 {[%clk 0:00:14]} 35. Kg2 {[%clk 0:00:49]}  Kg7 {[%clk 0:00:14]} 36. Ra3 {[%clk 0:00:36]}  h6 {[%clk 0:00:14]} 37. Rc3 {[%clk 0:00:36]}  Qd7 {[%clk 0:00:14]} 38. Qf4 {[%clk 0:00:30]}  Qb7+ {[%clk 0:00:13]} 39. Rf3 {[%clk 0:00:28]}  Re5 {[%clk 0:00:12]} 40. h4 {[%clk 0:00:27]}  Re4 {[%clk 0:00:11]} 41. Qg3 {[%clk 0:00:27]}  Qd5 {[%clk 0:00:11]} 42. g5 {[%clk 0:00:24]}  Qd4 {[%clk 0:00:11]} 43. gxf6+ {[%clk 0:00:23]}  Kxf6 {[%clk 0:00:12]} 44. Kh3 {[%clk 0:00:20]}  Qd1 {[%clk 0:00:10]} 45. Qg2 {[%clk 0:00:10]}  Re1 {[%clk 0:00:10]} 46. Rg3 {[%clk 0:00:05]}  Rh1+ {[%clk 0:00:10]} 47. Qh2 {[%clk 0:00:05]}  Rxh2+ {[%clk 0:00:10]} 48. Kxh2 {[%clk 0:00:05]}  Qd2 {[%clk 0:00:10]} 49. Rg2 {[%clk 0:00:06]}  Qxb2 {[%clk 0:00:10]} 50. h5 {[%clk 0:00:07]}  Qe5+ {[%clk 0:00:10]} 51. Rg3 {[%clk 0:00:07]}  Qxf5 {[%clk 0:00:10]} 52. Kg2 {[%clk 0:00:08]}  Qxh5 {[%clk 0:00:10]} 53. Rf3+ {[%clk 0:00:09]}  Qxf3+ {[%clk 0:00:10]} 54. Kxf3 {[%clk 0:00:09]}  Ke5 {[%clk 0:00:10]} 55. Ke3 {[%clk 0:00:10]}  f5 {[%clk 0:00:11]} 56. Kd2 {[%clk 0:00:10]}  h5 {[%clk 0:00:11]} 57. Ke2 {[%clk 0:00:11]}  Kf4 {[%clk 0:00:12]} 58. Ke1 {[%clk 0:00:12]}  h4 {[%clk 0:00:13]} 59. Kf1 {[%clk 0:00:13]}  b4 {[%clk 0:00:13]} 60. Kg2 {[%clk 0:00:14]}  b3 {[%clk 0:00:14]} 61. Kg1 {[%clk 0:00:15]} 0-1


[Site "https://www.chess.com"]

[Event "Titled Tuesday Blitz June 20 Late 2023"]
[White "K2JW"]
[Black "Arabidze, Meri"]
[BlackFideId "13604040"]
[WhiteElo "2341"]
[BlackElo "2405"]
[Result "0-1"]
[Round "1"]
[TimeControl "180+2"]
[Date "2023.06.20"]
[WhiteClock "0:00:00"]
[BlackClock "0:01:04"]
[Board "124"]

1. d4 {[%clk 0:02:31]}  f5 {[%clk 0:02:58]} 2. c4 {[%clk 0:02:31]}  Nf6 {[%clk 0:02:58]} 3. g3 {[%clk 0:02:28]}  e6 {[%clk 0:02:59]} 4. Bg2 {[%clk 0:02:28]}  c6 {[%clk 0:02:59]} 5. Nf3 {[%clk 0:02:25]}  d5 {[%clk 0:02:59]} 6. O-O {[%clk 0:02:25]}  Bd6 {[%clk 0:02:59]} 7. b3 {[%clk 0:02:25]}  Qe7 {[%clk 0:02:57]} 8. Nc3 {[%clk 0:02:08]}  O-O {[%clk 0:02:57]} 9. Qc2 {[%clk 0:02:05]}  Bd7 {[%clk 0:02:52]} 10. Ne5 {[%clk 0:02:02]}  Be8 {[%clk 0:02:52]} 11. Nd3 {[%clk 0:01:44]}  Nbd7 {[%clk 0:02:46]} 12. Bf4 {[%clk 0:01:41]}  Ne4 {[%clk 0:02:42]} 13. f3 {[%clk 0:01:16]}  Bxf4 {[%clk 0:02:33]} 14. fxe4 {[%clk 0:01:10]}  Be3+ {[%clk 0:02:32]} 15. Kh1 {[%clk 0:01:10]}  Bxd4 {[%clk 0:02:31]} 16. exd5 {[%clk 0:01:08]}  cxd5 {[%clk 0:02:22]} 17. Nf4 {[%clk 0:00:46]}  Bf7 {[%clk 0:02:08]} 18. Rad1 {[%clk 0:00:38]}  Bxc3 {[%clk 0:01:52]} 19. Qxc3 {[%clk 0:00:39]}  Rac8 {[%clk 0:01:51]} 20. Qd2 {[%clk 0:00:32]}  Nc5 {[%clk 0:01:37]} 21. cxd5 {[%clk 0:00:24]}  e5 {[%clk 0:01:37]} 22. d6 {[%clk 0:00:23]}  Qf6 {[%clk 0:01:29]} 23. Nd5 {[%clk 0:00:15]}  Qxd6 {[%clk 0:01:28]} 24. Rxf5 {[%clk 0:00:13]}  Rcd8 {[%clk 0:01:19]} 25. Qg5 {[%clk 0:00:08]}  Kh8 {[%clk 0:01:09]} 26. Rdf1 {[%clk 0:00:07]}  Bxd5 {[%clk 0:01:03]} 27. Rxf8+ {[%clk 0:00:00]}  Rxf8 {[%clk 0:01:04]} 0-1


[Site "https://www.chess.com"]

[Event "Titled Tuesday Blitz June 20 Late 2023"]
[White "crosky"]
[Black "Garcia Ramos, Daniel"]
[BlackFideId "32010311"]
[WhiteElo "2340"]
[BlackElo "2341"]
[Result "1-0"]
[Round "1"]
[TimeControl "180+2"]
[Date "2023.06.20"]
[WhiteClock "0:00:10"]
[BlackClock "0:00:09"]
[Board "126"]

1. d4 {[%clk 0:02:59]}  d5 {[%clk 0:02:59]} 2. c4 {[%clk 0:02:59]}  e6 {[%clk 0:03:00]} 3. Nc3 {[%clk 0:02:57]}  Nf6 {[%clk 0:03:00]} 4. cxd5 {[%clk 0:02:57]}  Nxd5 {[%clk 0:03:00]} 5. e4 {[%clk 0:02:57]}  Nxc3 {[%clk 0:03:01]} 6. bxc3 {[%clk 0:02:58]}  c5 {[%clk 0:03:01]} 7. Nf3 {[%clk 0:02:57]}  cxd4 {[%clk 0:03:01]} 8. cxd4 {[%clk 0:02:58]}  Bb4+ {[%clk 0:03:01]} 9. Bd2 {[%clk 0:02:59]}  Bxd2+ {[%clk 0:03:02]} 10. Qxd2 {[%clk 0:03:00]}  O-O {[%clk 0:03:02]} 11. Bc4 {[%clk 0:02:58]}  Nd7 {[%clk 0:03:02]} 12. O-O {[%clk 0:02:58]}  b6 {[%clk 0:03:02]} 13. Rad1 {[%clk 0:02:56]}  Bb7 {[%clk 0:03:02]} 14. Rfe1 {[%clk 0:02:57]}  Rc8 {[%clk 0:03:02]} 15. Bb3 {[%clk 0:02:53]}  h6 {[%clk 0:03:02]} 16. Qf4 {[%clk 0:02:28]}  Qc7 {[%clk 0:02:51]} 17. Qxc7 {[%clk 0:02:19]}  Rxc7 {[%clk 0:02:51]} 18. d5 {[%clk 0:02:20]}  exd5 {[%clk 0:02:50]} 19. exd5 {[%clk 0:02:21]}  Nc5 {[%clk 0:02:49]} 20. d6 {[%clk 0:02:13]}  Rcc8 {[%clk 0:01:59]} 21. Ne5 {[%clk 0:01:50]}  Rcd8 {[%clk 0:01:52]} 22. Bc4 {[%clk 0:01:19]}  Be4 {[%clk 0:01:00]} 23. f3 {[%clk 0:01:07]}  Bf5 {[%clk 0:00:54]} 24. Nc6 {[%clk 0:00:55]}  Be6 {[%clk 0:00:48]} 25. Bxe6 {[%clk 0:00:50]}  fxe6 {[%clk 0:00:47]} 26. Nxd8 {[%clk 0:00:48]}  Rxd8 {[%clk 0:00:47]} 27. Re5 {[%clk 0:00:48]}  Kf7 {[%clk 0:00:46]} 28. Kf2 {[%clk 0:00:47]}  Kf6 {[%clk 0:00:45]} 29. f4 {[%clk 0:00:47]}  Rd7 {[%clk 0:00:40]} 30. g4 {[%clk 0:00:46]}  g5 {[%clk 0:00:39]} 31. Ke3 {[%clk 0:00:41]}  Nb7 {[%clk 0:00:35]} 32. h4 {[%clk 0:00:25]}  Nxd6 {[%clk 0:00:20]} 33. hxg5+ {[%clk 0:00:20]}  hxg5 {[%clk 0:00:21]} 34. Kf3 {[%clk 0:00:14]}  gxf4 {[%clk 0:00:21]} 35. Re2 {[%clk 0:00:13]}  e5 {[%clk 0:00:19]} 36. Red2 {[%clk 0:00:11]}  Ke6 {[%clk 0:00:20]} 37. g5 {[%clk 0:00:12]}  Rd8 {[%clk 0:00:12]} 38. g6 {[%clk 0:00:11]}  Kf5 {[%clk 0:00:12]} 39. Rxd6 {[%clk 0:00:11]}  Rh8 {[%clk 0:00:13]} 40. g7 {[%clk 0:00:11]}  Rg8 {[%clk 0:00:13]} 41. Rd7 {[%clk 0:00:10]}  e4+ {[%clk 0:00:13]} 42. Kf2 {[%clk 0:00:09]}  Kg4 {[%clk 0:00:13]} 43. Rg1+ {[%clk 0:00:09]}  Kh4 {[%clk 0:00:13]} 44. Rh1+ {[%clk 0:00:09]}  Kg4 {[%clk 0:00:13]} 45. Rh8 {[%clk 0:00:10]}  e3+ {[%clk 0:00:09]} 46. Ke2 {[%clk 0:00:10]} 1-0


[Site "https://www.chess.com"]

[Event "Titled Tuesday Blitz June 20 Late 2023"]
[White "Shapiro, Daniel"]
[Black "Domingo Nunez, Alejandro"]
[WhiteFideId "2001780"]
[BlackFideId "22245561"]
[WhiteElo "2335"]
[BlackElo "2291"]
[Result "0-1"]
[Round "1"]
[TimeControl "180+2"]
[Date "2023.06.20"]
[WhiteClock "0:00:00"]
[BlackClock "0:00:36"]
[Board "128"]

1. d4 {[%clk 0:02:46]}  g6 {[%clk 0:02:59]} 2. e4 {[%clk 0:02:45]}  Bg7 {[%clk 0:02:59]} 3. Nc3 {[%clk 0:02:43]}  c6 {[%clk 0:02:58]} 4. h3 {[%clk 0:02:39]}  d5 {[%clk 0:02:59]} 5. Nf3 {[%clk 0:02:40]}  dxe4 {[%clk 0:02:59]} 6. Nxe4 {[%clk 0:02:39]}  Nf6 {[%clk 0:03:00]} 7. Nxf6+ {[%clk 0:02:39]}  exf6 {[%clk 0:03:01]} 8. Bc4 {[%clk 0:02:35]}  O-O {[%clk 0:03:02]} 9. O-O {[%clk 0:02:35]}  a5 {[%clk 0:03:03]} 10. a4 {[%clk 0:02:34]}  Na6 {[%clk 0:03:04]} 11. c3 {[%clk 0:02:33]}  Nc7 {[%clk 0:03:03]} 12. Bf4 {[%clk 0:02:27]}  Nd5 {[%clk 0:03:03]} 13. Bh2 {[%clk 0:02:26]}  Re8 {[%clk 0:03:01]} 14. Re1 {[%clk 0:02:24]}  Be6 {[%clk 0:02:57]} 15. Qd2 {[%clk 0:02:17]}  Qd7 {[%clk 0:02:54]} 16. Re2 {[%clk 0:01:47]}  Bf8 {[%clk 0:02:32]} 17. Rae1 {[%clk 0:01:42]}  Kg7 {[%clk 0:02:32]} 18. Re4 {[%clk 0:01:30]}  h5 {[%clk 0:02:29]} 19. Bd3 {[%clk 0:01:19]}  Bd6 {[%clk 0:02:21]} 20. Bxd6 {[%clk 0:01:16]}  Qxd6 {[%clk 0:02:22]} 21. Bf1 {[%clk 0:01:02]}  Nb6 {[%clk 0:02:12]} 22. Qd1 {[%clk 0:00:49]}  Red8 {[%clk 0:01:40]} 23. Nd2 {[%clk 0:00:47]}  c5 {[%clk 0:01:31]} 24. Nf3 {[%clk 0:00:47]}  c4 {[%clk 0:01:14]} 25. Nd2 {[%clk 0:00:40]}  Qc6 {[%clk 0:01:13]} 26. g4 {[%clk 0:00:30]}  hxg4 {[%clk 0:01:10]} 27. hxg4 {[%clk 0:00:31]}  Rh8 {[%clk 0:01:02]} 28. Bg2 {[%clk 0:00:15]}  Bd5 {[%clk 0:01:02]} 29. Qe2 {[%clk 0:00:11]}  Bxe4 {[%clk 0:01:00]} 30. Bxe4 {[%clk 0:00:12]}  Qd6 {[%clk 0:00:59]} 31. Bg2 {[%clk 0:00:08]}  Nd5 {[%clk 0:00:56]} 32. Nxc4 {[%clk 0:00:08]}  Qh2+ {[%clk 0:00:55]} 33. Kf1 {[%clk 0:00:08]}  Nf4 {[%clk 0:00:56]} 34. Qf3 {[%clk 0:00:08]}  Rae8 {[%clk 0:00:53]} 35. Re3 {[%clk 0:00:06]}  Nxg2 {[%clk 0:00:35]} 36. Qxg2 {[%clk 0:00:00]}  Qf4 {[%clk 0:00:36]} 0-1


[Site "https://www.chess.com"]

[Event "Titled Tuesday Blitz June 20 Late 2023"]
[White "Jeet, Jain"]
[Black "Rodrigues, Bruno Morado"]
[WhiteFideId "5073022"]
[BlackFideId "2115654"]
[WhiteElo "2067"]
[BlackElo "2040"]
[Result "0-1"]
[Round "1"]
[TimeControl "180+2"]
[Date "2023.06.20"]
[WhiteClock "0:00:57"]
[BlackClock "0:00:18"]
[Board "129"]

1. Nf3 {[%clk 0:02:59]}  Nf6 {[%clk 0:02:59]} 2. b3 {[%clk 0:02:59]}  d5 {[%clk 0:02:59]} 3. Bb2 {[%clk 0:02:59]}  e6 {[%clk 0:03:00]} 4. e3 {[%clk 0:03:00]}  Be7 {[%clk 0:03:01]} 5. d4 {[%clk 0:02:58]}  O-O {[%clk 0:03:01]} 6. Bd3 {[%clk 0:02:59]}  c5 {[%clk 0:02:58]} 7. O-O {[%clk 0:02:58]}  Ne4 {[%clk 0:02:58]} 8. Nbd2 {[%clk 0:02:57]}  Nxd2 {[%clk 0:02:54]} 9. Qxd2 {[%clk 0:02:56]}  Bf6 {[%clk 0:02:55]} 10. Ne5 {[%clk 0:02:53]}  b6 {[%clk 0:02:47]} 11. f4 {[%clk 0:02:53]}  Bb7 {[%clk 0:02:47]} 12. a4 {[%clk 0:02:43]}  Nd7 {[%clk 0:02:45]} 13. c3 {[%clk 0:02:40]}  Rc8 {[%clk 0:02:39]} 14. Ba3 {[%clk 0:02:38]}  Re8 {[%clk 0:02:38]} 15. Rf3 {[%clk 0:02:36]}  c4 {[%clk 0:02:37]} 16. Bc2 {[%clk 0:02:31]}  cxb3 {[%clk 0:02:36]} 17. Bxb3 {[%clk 0:02:32]}  Ba6 {[%clk 0:02:30]} 18. Rh3 {[%clk 0:02:30]}  Qc7 {[%clk 0:02:18]} 19. Rc1 {[%clk 0:02:26]}  Be7 {[%clk 0:02:02]} 20. Bxe7 {[%clk 0:02:17]}  Rxe7 {[%clk 0:02:03]} 21. Bc2 {[%clk 0:02:17]}  Nf6 {[%clk 0:02:00]} 22. Bb1 {[%clk 0:02:12]}  Ne4 {[%clk 0:01:59]} 23. Qe1 {[%clk 0:02:11]}  h6 {[%clk 0:01:37]} 24. Qh4 {[%clk 0:02:02]}  Nxc3 {[%clk 0:01:31]} 25. Rg3 {[%clk 0:01:57]}  Ne2+ {[%clk 0:01:28]} 26. Kf2 {[%clk 0:01:57]}  Qxc1 {[%clk 0:01:11]} 27. Qxe7 {[%clk 0:01:58]}  Qc7 {[%clk 0:01:00]} 28. Qxc7 {[%clk 0:01:46]}  Rxc7 {[%clk 0:01:01]} 29. Rh3 {[%clk 0:01:44]}  Nc3 {[%clk 0:00:46]} 30. Bc2 {[%clk 0:01:44]}  Ne4+ {[%clk 0:00:46]} 31. Bxe4 {[%clk 0:01:44]}  dxe4 {[%clk 0:00:47]} 32. f5 {[%clk 0:01:35]}  exf5 {[%clk 0:00:40]} 33. Kg3 {[%clk 0:01:36]}  g6 {[%clk 0:00:34]} 34. Rxh6 {[%clk 0:01:34]}  Rc3 {[%clk 0:00:33]} 35. Kf4 {[%clk 0:01:33]}  Ra3 {[%clk 0:00:32]} 36. Nc6 {[%clk 0:01:28]}  Rxa4 {[%clk 0:00:26]} 37. Nxa7 {[%clk 0:01:28]}  Bf1 {[%clk 0:00:26]} 38. Nc8 {[%clk 0:01:27]}  b5 {[%clk 0:00:23]} 39. g4 {[%clk 0:01:28]}  fxg4 {[%clk 0:00:19]} 40. Nd6 {[%clk 0:01:20]}  b4 {[%clk 0:00:19]} 41. Nxe4 {[%clk 0:01:21]}  b3 {[%clk 0:00:19]} 42. d5 {[%clk 0:01:07]}  b2 {[%clk 0:00:18]} 43. Kg5 {[%clk 0:00:57]}  Rxe4 {[%clk 0:00:18]} 0-1


[Site "https://www.chess.com"]

[Event "Titled Tuesday Blitz June 20 Late 2023"]
[White "Rosenberg, Evan S"]
[Black "Seemann, Jakub"]
[WhiteFideId "2019299"]
[BlackFideId "21874697"]
[WhiteElo "2331"]
[BlackElo "2364"]
[Result "0-1"]
[Round "1"]
[TimeControl "180+2"]
[Date "2023.06.20"]
[WhiteClock "0:01:09"]
[BlackClock "0:01:29"]
[Board "130"]

1. d4 {[%clk 0:03:00]}  Nf6 {[%clk 0:02:58]} 2. Bg5 {[%clk 0:03:00]}  e6 {[%clk 0:02:54]} 3. e4 {[%clk 0:02:59]}  h6 {[%clk 0:02:54]} 4. Bxf6 {[%clk 0:02:59]}  Qxf6 {[%clk 0:02:55]} 5. Nc3 {[%clk 0:02:59]}  d6 {[%clk 0:02:54]} 6. Qd2 {[%clk 0:02:59]}  g6 {[%clk 0:02:54]} 7. f4 {[%clk 0:02:57]}  Bg7 {[%clk 0:02:55]} 8. O-O-O {[%clk 0:02:56]}  Nd7 {[%clk 0:02:53]} 9. Nf3 {[%clk 0:02:55]}  O-O {[%clk 0:02:53]} 10. e5 {[%clk 0:02:50]}  Qe7 {[%clk 0:02:52]} 11. g4 {[%clk 0:02:36]}  c5 {[%clk 0:02:40]} 12. Ne4 {[%clk 0:02:19]}  d5 {[%clk 0:02:28]} 13. Nd6 {[%clk 0:02:19]}  cxd4 {[%clk 0:01:52]} 14. Nxd4 {[%clk 0:02:18]}  Nxe5 {[%clk 0:01:52]} 15. fxe5 {[%clk 0:02:18]}  Bxe5 {[%clk 0:01:53]} 16. Nxc8 {[%clk 0:02:18]}  Raxc8 {[%clk 0:01:53]} 17. Kb1 {[%clk 0:02:18]}  Bg7 {[%clk 0:01:49]} 18. c3 {[%clk 0:02:18]}  a6 {[%clk 0:01:48]} 19. h4 {[%clk 0:02:18]}  b5 {[%clk 0:01:48]} 20. h5 {[%clk 0:02:18]}  g5 {[%clk 0:01:48]} 21. Qd3 {[%clk 0:02:14]}  b4 {[%clk 0:01:46]} 22. Rc1 {[%clk 0:02:13]}  bxc3 {[%clk 0:01:46]} 23. Rxc3 {[%clk 0:02:07]}  Rxc3 {[%clk 0:01:42]} 24. bxc3 {[%clk 0:02:08]}  Bxd4 {[%clk 0:01:30]} 25. cxd4 {[%clk 0:02:00]}  Rb8+ {[%clk 0:01:31]} 26. Ka1 {[%clk 0:01:09]}  Qb4 {[%clk 0:01:29]} 0-1


[Site "https://www.chess.com"]